[Event "*** Titled Tuesday Blitz"]
[Site "Chess.com"]
[Date "2021.04.20"]
[Round "6"]
[White "Borsuk_Konstantin"]
[Black "guillembaches"]
[Result "1-0"]
[WhiteElo "2691"]
[BlackElo "2506"]
[TimeControl "180+1"]
[EndTime "11:06:27 PDT"]
[Termination "Borsuk_Konstantin won by checkmate"]

1. d4 {[%clk 0:03:00.9]} 1... Nf6 {[%clk 0:03:00.5]} 2. c4 {[%clk 0:03:01.1]}
2... e6 {[%clk 0:03:01.1]} 3. Nc3 {[%clk 0:03:01.7]} 3... Bb4 {[%clk 0:03:01.6]}
4. Qc2 {[%clk 0:03:02.3]} 4... O-O {[%clk 0:02:59.6]} 5. a3 {[%clk 0:03:02.1]}
5... Bxc3+ {[%clk 0:02:53.4]} 6. Qxc3 {[%clk 0:03:03]} 6... d5 {[%clk
0:02:50.7]} 7. Nf3 {[%clk 0:03:01.6]} 7... dxc4 {[%clk 0:02:43.5]} 8. Qxc4
{[%clk 0:02:55.7]} 8... b6 {[%clk 0:02:41.2]} 9. Bf4 {[%clk 0:02:49.8]} 9... Ba6
{[%clk 0:02:27.3]} 10. Qxc7 {[%clk 0:02:43.8]} 10... Qxc7 {[%clk 0:02:15.1]} 11.
Bxc7 {[%clk 0:02:43.3]} 11... Rc8 {[%clk 0:02:14.8]} 12. Bf4 {[%clk 0:02:25.7]}
12... Rc2 {[%clk 0:02:08.8]} 13. Rc1 {[%clk 0:02:16.2]} 13... Rxc1+ {[%clk
0:01:14.3]} 14. Bxc1 {[%clk 0:02:15.3]} 14... Nc6 {[%clk 0:01:12.8]} 15. e3
{[%clk 0:01:59.7]} 15... Bxf1 {[%clk 0:01:12.7]} 16. Rxf1 {[%clk 0:02:00.5]}
16... Rc8 {[%clk 0:01:12.8]} 17. Bd2 {[%clk 0:01:57.7]} 17... Na5 {[%clk
0:01:05.7]} 18. Bxa5 {[%clk 0:01:46.5]} 18... bxa5 {[%clk 0:01:05.6]} 19. Kd1
{[%clk 0:01:43.1]} 19... Ne4 {[%clk 0:00:57.8]} 20. Nd2 {[%clk 0:01:37]} 20...
Nd6 {[%clk 0:00:51]} 21. a4 {[%clk 0:01:25.9]} 21... f5 {[%clk 0:00:44.9]} 22.
b3 {[%clk 0:01:25.2]} 22... Kf7 {[%clk 0:00:40.2]} 23. f3 {[%clk 0:01:21.3]}
23... Rc3 {[%clk 0:00:27.6]} 24. Ke2 {[%clk 0:01:20.9]} 24... g5 {[%clk
0:00:23.6]} 25. g3 {[%clk 0:01:19.9]} 25... h5 {[%clk 0:00:21.2]} 26. Rb1 {[%clk
0:01:13.7]} 26... g4 {[%clk 0:00:17.9]} 27. Rb2 {[%clk 0:01:02.7]} 27... gxf3+
{[%clk 0:00:15.9]} 28. Kxf3 {[%clk 0:01:02.9]} 28... Kf6 {[%clk 0:00:14.8]} 29.
Kf4 {[%clk 0:01:02.1]} 29... Rd3 {[%clk 0:00:11.3]} 30. Nc4 {[%clk 0:00:54.1]}
30... Ne4 {[%clk 0:00:10.1]} 31. Nxa5 {[%clk 0:00:50.4]} 31... Rd1 {[%clk
0:00:09.9]} 32. Kf3 {[%clk 0:00:48.9]} 32... h4 {[%clk 0:00:07.9]} 33. gxh4
{[%clk 0:00:48.4]} 33... Rg1 {[%clk 0:00:07.8]} 34. Nc6 {[%clk 0:00:44.7]} 34...
Rf1+ {[%clk 0:00:07.5]} 35. Kg2 {[%clk 0:00:44.7]} 35... Rc1 {[%clk 0:00:06.1]}
36. Nxa7 {[%clk 0:00:44.3]} 36... Nc3 {[%clk 0:00:03.1]} 37. a5 {[%clk
0:00:41.8]} 37... Nd5 {[%clk 0:00:03.1]} 38. b4 {[%clk 0:00:37.1]} 38... Nxe3+
{[%clk 0:00:02.6]} 39. Kf3 {[%clk 0:00:37.4]} 39... Nc4 {[%clk 0:00:02.9]} 40.
Ra2 {[%clk 0:00:33]} 40... Rc3+ {[%clk 0:00:02.5]} 41. Kf2 {[%clk 0:00:31.7]}
41... f4 {[%clk 0:00:02.4]} 42. b5 {[%clk 0:00:31.6]} 42... f3 {[%clk
0:00:02.5]} 43. b6 {[%clk 0:00:31.8]} 43... Nd6 {[%clk 0:00:02.9]} 44. Kg3
{[%clk 0:00:15.3]} 44... Ne4+ {[%clk 0:00:02.5]} 45. Kf4 {[%clk 0:00:15.2]}
45... Nd6 {[%clk 0:00:01.7]} 46. Rf2 {[%clk 0:00:13]} 46... Nc4 {[%clk
0:00:01.6]} 47. Rxf3 {[%clk 0:00:12.8]} 47... Rc1 {[%clk 0:00:01.7]} 48. b7
{[%clk 0:00:12]} 48... Rc3 {[%clk 0:00:01.7]} 49. Rxc3 {[%clk 0:00:11.2]} 49...
e5+ {[%clk 0:00:02.3]} 50. dxe5+ {[%clk 0:00:11]} 50... Nxe5 {[%clk 0:00:03.2]}
51. b8=Q {[%clk 0:00:10.8]} 51... Ng6+ {[%clk 0:00:04.1]} 52. Ke4 {[%clk
0:00:10.4]} 52... Kg7 {[%clk 0:00:05]} 53. Rc7+ {[%clk 0:00:09.5]} 53... Kh6
{[%clk 0:00:05.9]} 54. Rc6 {[%clk 0:00:07.7]} 54... Kh5 {[%clk 0:00:06.8]} 55.
Rxg6 {[%clk 0:00:07.9]} 55... Kxh4 {[%clk 0:00:06.6]} 56. Qh8# {[%clk
0:00:07.7]} 1-0

[Event "*** Titled Tuesday Blitz"]
[Site "Chess.com"]
[Date "2021.04.20"]
[Round "6"]
[White "Nozdrachev_Leonid"]
[Black "Jumbo"]
[Result "0-1"]
[WhiteElo "2550"]
[BlackElo "2798"]
[TimeControl "180+1"]
[EndTime "11:06:28 PDT"]
[Termination "Jumbo won by resignation"]

1. e4 {[%clk 0:03:00.9]} 1... c5 {[%clk 0:02:58.8]} 2. c3 {[%clk 0:03:00.5]}
2... d6 {[%clk 0:02:59.7]} 3. d4 {[%clk 0:02:59.9]} 3... cxd4 {[%clk 0:02:58.8]}
4. cxd4 {[%clk 0:03:00.8]} 4... g6 {[%clk 0:02:58.9]} 5. Nf3 {[%clk 0:02:59.8]}
5... Bg7 {[%clk 0:02:59.4]} 6. Be2 {[%clk 0:02:59.6]} 6... Nf6 {[%clk 0:02:59]}
7. Nc3 {[%clk 0:02:59.1]} 7... O-O {[%clk 0:02:59.2]} 8. h3 {[%clk 0:02:59]}
8... Nc6 {[%clk 0:02:59.1]} 9. O-O {[%clk 0:02:58.5]} 9... Qa5 {[%clk
0:02:51.5]} 10. Be3 {[%clk 0:02:50.8]} 10... Bd7 {[%clk 0:02:50.6]} 11. a3
{[%clk 0:02:39.8]} 11... Rfc8 {[%clk 0:02:50]} 12. Rc1 {[%clk 0:02:37.1]} 12...
Qd8 {[%clk 0:02:47.2]} 13. Re1 {[%clk 0:02:31.7]} 13... Be8 {[%clk 0:02:40.1]}
14. e5 {[%clk 0:02:25.3]} 14... dxe5 {[%clk 0:02:35.3]} 15. dxe5 {[%clk
0:02:26.2]} 15... Qxd1 {[%clk 0:02:33.9]} 16. Bxd1 {[%clk 0:02:22.4]} 16... Nd7
{[%clk 0:02:30.3]} 17. e6 {[%clk 0:02:22]} 17... fxe6 {[%clk 0:02:30.5]} 18. Bb3
{[%clk 0:02:22.2]} 18... Nf8 {[%clk 0:02:30.8]} 19. Ng5 {[%clk 0:02:18.7]} 19...
Bf7 {[%clk 0:02:27.9]} 20. Nce4 {[%clk 0:02:13.8]} 20... Bxb2 {[%clk 0:02:11]}
21. Rb1 {[%clk 0:02:11.1]} 21... Bf6 {[%clk 0:02:09.9]} 22. Nxf7 {[%clk
0:02:05.8]} 22... Kxf7 {[%clk 0:02:09.6]} 23. Bh6 {[%clk 0:01:50.5]} 23... Nd4
{[%clk 0:02:07.1]} 24. Bxf8 {[%clk 0:01:40.6]} 24... Kxf8 {[%clk 0:01:55.3]} 25.
Bxe6 {[%clk 0:01:27.2]} 25... Rc7 {[%clk 0:01:48.2]} 26. Bd5 {[%clk 0:01:11.8]}
26... Rb8 {[%clk 0:01:46.3]} 27. Kf1 {[%clk 0:00:55.3]} 27... b6 {[%clk
0:01:45.6]} 28. Red1 {[%clk 0:00:37.2]} 28... Nc2 {[%clk 0:01:30.8]} 29. a4
{[%clk 0:00:36.6]} 29... Rd8 {[%clk 0:01:29.1]} 30. Bb3 {[%clk 0:00:29.8]} 30...
Nd4 {[%clk 0:01:27.3]} 31. g4 {[%clk 0:00:24.3]} 31... Kg7 {[%clk 0:01:06.7]}
32. Rd3 {[%clk 0:00:24.2]} 32... e5 {[%clk 0:00:58.1]} 33. Rbd1 {[%clk
0:00:23.6]} 33... Be7 {[%clk 0:00:51.7]} 34. Ba2 {[%clk 0:00:15]} 34... Rf8
{[%clk 0:00:48.3]} 35. R1d2 {[%clk 0:00:13.2]} 35... Rf4 {[%clk 0:00:46.9]} 36.
Nc3 {[%clk 0:00:09.8]} 36... Nf3 {[%clk 0:00:08.9]} 37. Rd1 {[%clk 0:00:06.7]}
37... Rd4 {[%clk 0:00:03.8]} 38. Rxf3 {[%clk 0:00:05.6]} 38... Rxc3 {[%clk
0:00:03.1]} 39. Rxc3 {[%clk 0:00:05.3]} 39... Rxd1+ {[%clk 0:00:02.6]} 40. Kg2
{[%clk 0:00:05.9]} 40... Bc5 {[%clk 0:00:01.9]} 41. Rf3 {[%clk 0:00:04.5]} 41...
Rd7 {[%clk 0:00:02.3]} 42. Bc4 {[%clk 0:00:04.5]} 42... e4 {[%clk 0:00:02.1]}
43. Rf4 {[%clk 0:00:04.9]} 43... Re7 {[%clk 0:00:02.6]} 44. Kf1 {[%clk
0:00:04.2]} 44... Bd6 {[%clk 0:00:02.6]} 45. Rf8 {[%clk 0:00:02.1]} 45... Kxf8
{[%clk 0:00:02.1]} 46. Ke2 {[%clk 0:00:01.4]} 46... Kg7 {[%clk 0:00:03]} 47. Bd5
{[%clk 0:00:02]} 47... e3 {[%clk 0:00:03.7]} 48. f3 {[%clk 0:00:02]} 48... Bc5
{[%clk 0:00:04.6]} 49. h4 {[%clk 0:00:02.4]} 49... Rd7 {[%clk 0:00:05]} 50. h5
{[%clk 0:00:03.3]} 50... Rxd5 {[%clk 0:00:05.1]} 51. h6+ {[%clk 0:00:03.3]}
51... Kxh6 {[%clk 0:00:05.5]} 0-1

[Event "*** Titled Tuesday Blitz"]
[Site "Chess.com"]
[Date "2021.04.20"]
[Round "6"]
[White "Artem_Sadovsky"]
[Black "djano"]
[Result "1-0"]
[WhiteElo "2632"]
[BlackElo "2470"]
[TimeControl "180+1"]
[EndTime "11:06:30 PDT"]
[Termination "Artem_Sadovsky won on time"]

1. Nf3 {[%clk 0:02:56]} 1... c6 {[%clk 0:02:59.6]} 2. c4 {[%clk 0:02:55.8]} 2...
d5 {[%clk 0:02:59.6]} 3. b3 {[%clk 0:02:56.4]} 3... Nf6 {[%clk 0:02:59.6]} 4.
Bb2 {[%clk 0:02:57]} 4... g6 {[%clk 0:02:59.4]} 5. e3 {[%clk 0:02:57.7]} 5...
Bg7 {[%clk 0:02:59.7]} 6. Be2 {[%clk 0:02:58.4]} 6... O-O {[%clk 0:02:59.9]} 7.
O-O {[%clk 0:02:59]} 7... Bg4 {[%clk 0:02:59.8]} 8. d3 {[%clk 0:02:48.8]} 8...
Bxf3 {[%clk 0:02:59]} 9. Bxf3 {[%clk 0:02:49.7]} 9... Nbd7 {[%clk 0:02:56.6]}
10. d4 {[%clk 0:02:44.7]} 10... e6 {[%clk 0:02:55.3]} 11. Nc3 {[%clk 0:02:43.9]}
11... a5 {[%clk 0:02:53.3]} 12. Qe2 {[%clk 0:02:39.3]} 12... Re8 {[%clk
0:02:50.4]} 13. Rfd1 {[%clk 0:02:36.6]} 13... Qb8 {[%clk 0:02:49.1]} 14. e4
{[%clk 0:02:29.6]} 14... e5 {[%clk 0:02:39.8]} 15. cxd5 {[%clk 0:02:15.2]} 15...
exd4 {[%clk 0:02:33.9]} 16. dxc6 {[%clk 0:02:12.2]} 16... dxc3 {[%clk
0:02:10.5]} 17. cxd7 {[%clk 0:02:12.1]} 17... Nxd7 {[%clk 0:02:09]} 18. Bxc3
{[%clk 0:02:00.3]} 18... Bxc3 {[%clk 0:02:07.8]} 19. Rac1 {[%clk 0:02:01]} 19...
Qc7 {[%clk 0:01:14.6]} 20. Rd3 {[%clk 0:02:00.7]} 20... Rac8 {[%clk 0:01:06.9]}
21. Bg4 {[%clk 0:01:26.2]} 21... Ne5 {[%clk 0:00:40.7]} 22. Rdxc3 {[%clk
0:01:07.9]} 22... Qxc3 {[%clk 0:00:39.4]} 23. Rxc3 {[%clk 0:01:08.4]} 23... Rxc3
{[%clk 0:00:38.8]} 24. h4 {[%clk 0:00:55]} 24... Rd8 {[%clk 0:00:33.2]} 25. Bh3
{[%clk 0:00:44.7]} 25... h5 {[%clk 0:00:33.3]} 26. Qb5 {[%clk 0:00:43.7]} 26...
Ng4 {[%clk 0:00:17.9]} 27. Bxg4 {[%clk 0:00:43.7]} 27... hxg4 {[%clk 0:00:18.1]}
28. Qxa5 {[%clk 0:00:38]} 28... Rd1+ {[%clk 0:00:11.2]} 29. Kh2 {[%clk 0:00:38]}
29... Rc2 {[%clk 0:00:11.6]} 30. Kg3 {[%clk 0:00:20.7]} 30... Rd3+ {[%clk
0:00:10.5]} 31. f3 {[%clk 0:00:14.6]} 31... Rdd2 {[%clk 0:00:10]} 32. Kxg4
{[%clk 0:00:13.3]} 32... Rxg2+ {[%clk 0:00:09.8]} 33. Kf4 {[%clk 0:00:13.5]}
33... Rxa2 {[%clk 0:00:10.5]} 34. Qd8+ {[%clk 0:00:13.6]} 34... Kg7 {[%clk
0:00:10.7]} 35. Qd4+ {[%clk 0:00:14.1]} 35... Kg8 {[%clk 0:00:11.1]} 36. Qd8+
{[%clk 0:00:13.5]} 36... Kg7 {[%clk 0:00:11.5]} 37. Qd4+ {[%clk 0:00:14]} 37...
Kg8 {[%clk 0:00:12.1]} 38. Qd5 {[%clk 0:00:14.9]} 38... b6 {[%clk 0:00:10.3]}
39. Qd8+ {[%clk 0:00:14.6]} 39... Kg7 {[%clk 0:00:10.6]} 40. Qxb6 {[%clk
0:00:15.5]} 40... Rh2 {[%clk 0:00:10.1]} 41. Qd4+ {[%clk 0:00:15.9]} 41... Kg8
{[%clk 0:00:10.3]} 42. Kg5 {[%clk 0:00:16.4]} 42... Ra5+ {[%clk 0:00:07.1]} 43.
Kg4 {[%clk 0:00:14.1]} 43... Rh5 {[%clk 0:00:06.5]} 44. Qd8+ {[%clk 0:00:13.1]}
44... Kg7 {[%clk 0:00:05.2]} 45. b4 {[%clk 0:00:13.7]} 45... Rg2+ {[%clk
0:00:04.7]} 46. Kf4 {[%clk 0:00:14]} 46... Rh2 {[%clk 0:00:03.1]} 47. Kg3 {[%clk
0:00:12.9]} 47... Rh1 {[%clk 0:00:03.8]} 48. Qd4+ {[%clk 0:00:10.8]} 48... Kg8
{[%clk 0:00:04.3]} 49. Qd8+ {[%clk 0:00:07.4]} 49... Kg7 {[%clk 0:00:03.9]} 50.
Qd4+ {[%clk 0:00:07.8]} 50... Kg8 {[%clk 0:00:03.9]} 51. e5 {[%clk 0:00:08.4]}
51... Rg1+ {[%clk 0:00:03.5]} 52. Qxg1 {[%clk 0:00:07.2]} 1-0

[Event "*** Titled Tuesday Blitz"]
[Site "Chess.com"]
[Date "2021.04.20"]
[Round "6"]
[White "jucAxx"]
[Black "Ladislav1969"]
[Result "1/2-1/2"]
[WhiteElo "2135"]
[BlackElo "2316"]
[TimeControl "180+1"]
[EndTime "11:06:31 PDT"]
[Termination "Game drawn - insufficient material"]

1. e4 {[%clk 0:03:00.9]} 1... c5 {[%clk 0:02:59]} 2. c3 {[%clk 0:02:59.8]} 2...
e6 {[%clk 0:02:59.9]} 3. d4 {[%clk 0:02:59.9]} 3... Nf6 {[%clk 0:02:55.5]} 4. e5
{[%clk 0:02:58.7]} 4... Nd5 {[%clk 0:02:55.8]} 5. Nf3 {[%clk 0:02:57.2]} 5...
cxd4 {[%clk 0:02:55.5]} 6. cxd4 {[%clk 0:02:55.1]} 6... d6 {[%clk 0:02:55.8]} 7.
Nc3 {[%clk 0:02:43.9]} 7... dxe5 {[%clk 0:02:55.6]} 8. Nxe5 {[%clk 0:02:42.3]}
8... Nc6 {[%clk 0:02:45.2]} 9. Nxc6 {[%clk 0:02:41]} 9... bxc6 {[%clk
0:02:44.8]} 10. Bd3 {[%clk 0:02:35.2]} 10... Bd6 {[%clk 0:02:42.8]} 11. Nxd5
{[%clk 0:02:32.2]} 11... cxd5 {[%clk 0:02:32]} 12. O-O {[%clk 0:02:29.4]} 12...
O-O {[%clk 0:02:29.1]} 13. Qh5 {[%clk 0:02:26.7]} 13... g6 {[%clk 0:02:29.3]}
14. Qe2 {[%clk 0:02:23.7]} 14... Qf6 {[%clk 0:02:24.4]} 15. Be3 {[%clk
0:02:20.9]} 15... Bd7 {[%clk 0:02:23.8]} 16. Rac1 {[%clk 0:02:12.8]} 16... Rfc8
{[%clk 0:02:23.7]} 17. Qd2 {[%clk 0:02:06.5]} 17... Qd8 {[%clk 0:02:06.1]} 18.
Bg5 {[%clk 0:02:03.6]} 18... Be7 {[%clk 0:01:55.2]} 19. Bxe7 {[%clk 0:01:59.8]}
19... Qxe7 {[%clk 0:01:55.4]} 20. Ba6 {[%clk 0:02:00.4]} 20... Rxc1 {[%clk
0:01:49.4]} 21. Rxc1 {[%clk 0:02:01.3]} 21... Qd6 {[%clk 0:01:49.7]} 22. Be2
{[%clk 0:01:53.4]} 22... Qb6 {[%clk 0:01:45]} 23. Rc5 {[%clk 0:01:45.2]} 23...
a5 {[%clk 0:01:36.5]} 24. Qc3 {[%clk 0:01:42.5]} 24... a4 {[%clk 0:01:33.9]} 25.
Rc7 {[%clk 0:01:33]} 25... Be8 {[%clk 0:01:24.8]} 26. g3 {[%clk 0:01:28.5]}
26... Rb8 {[%clk 0:01:08]} 27. Rc8 {[%clk 0:01:20.3]} 27... Rxc8 {[%clk
0:01:03.2]} 28. Qxc8 {[%clk 0:01:19.6]} 28... Kf8 {[%clk 0:01:03.9]} 29. Qc5+
{[%clk 0:01:16.2]} 29... Qxc5 {[%clk 0:01:03.4]} 30. dxc5 {[%clk 0:01:15.8]}
30... Ke7 {[%clk 0:00:55.5]} 31. b4 {[%clk 0:01:11.5]} 31... axb3 {[%clk
0:00:48]} 32. axb3 {[%clk 0:01:11.8]} 32... e5 {[%clk 0:00:46.5]} 33. Kf1 {[%clk
0:01:05.7]} 33... f5 {[%clk 0:00:41.1]} 34. Ke1 {[%clk 0:01:05.4]} 34... Bf7
{[%clk 0:00:39.8]} 35. Kd2 {[%clk 0:01:05.1]} 35... d4 {[%clk 0:00:38.9]} 36. b4
{[%clk 0:01:03]} 36... e4 {[%clk 0:00:34.8]} 37. Ba6 {[%clk 0:00:33.7]} 37...
Bd5 {[%clk 0:00:22.4]} 38. h4 {[%clk 0:00:20.5]} 38... h6 {[%clk 0:00:18.8]} 39.
Bc8 {[%clk 0:00:17.8]} 39... Kd8 {[%clk 0:00:17.3]} 40. Ba6 {[%clk 0:00:14.9]}
40... Kc7 {[%clk 0:00:17.7]} 41. b5 {[%clk 0:00:13.5]} 41... g5 {[%clk 0:00:16]}
42. hxg5 {[%clk 0:00:13.4]} 42... hxg5 {[%clk 0:00:15.9]} 43. Ke2 {[%clk
0:00:08]} 43... f4 {[%clk 0:00:15.3]} 44. gxf4 {[%clk 0:00:08.1]} 44... gxf4
{[%clk 0:00:15.3]} 45. Kd2 {[%clk 0:00:08.7]} 45... Kb8 {[%clk 0:00:12.3]} 46.
b6 {[%clk 0:00:07.4]} 46... Bb7 {[%clk 0:00:07.7]} 47. Bb5 {[%clk 0:00:07.1]}
47... Kc8 {[%clk 0:00:07.7]} 48. c6 {[%clk 0:00:06.9]} 48... e3+ {[%clk
0:00:06.6]} 49. fxe3 {[%clk 0:00:06.8]} 49... dxe3+ {[%clk 0:00:05.8]} 50. Ke2
{[%clk 0:00:07.2]} 50... Kb8 {[%clk 0:00:05.8]} 51. cxb7 {[%clk 0:00:03.9]}
51... Kxb7 {[%clk 0:00:05.9]} 52. Kf3 {[%clk 0:00:04.5]} 52... Kxb6 {[%clk
0:00:06.1]} 53. Be2 {[%clk 0:00:04.8]} 53... Kc5 {[%clk 0:00:07]} 54. Kxf4
{[%clk 0:00:05.4]} 54... Kd4 {[%clk 0:00:07.4]} 55. Bg4 {[%clk 0:00:04.8]} 55...
e2 {[%clk 0:00:06.5]} 56. Bxe2 {[%clk 0:00:05]} 1/2-1/2

[Event "*** Titled Tuesday Blitz"]
[Site "Chess.com"]
[Date "2021.04.20"]
[Round "6"]
[White "AshotParvanyan"]
[Black "CSB7"]
[Result "0-1"]
[WhiteElo "2536"]
[BlackElo "2755"]
[TimeControl "180+1"]
[EndTime "11:06:33 PDT"]
[Termination "CSB7 won by checkmate"]

1. Nf3 {[%clk 0:03:00.9]} 1... d5 {[%clk 0:02:57.4]} 2. d4 {[%clk 0:03:00.6]}
2... Nf6 {[%clk 0:02:56.8]} 3. c4 {[%clk 0:03:00.8]} 3... c6 {[%clk 0:02:56.9]}
4. Qc2 {[%clk 0:03:00.8]} 4... dxc4 {[%clk 0:02:54.5]} 5. Qxc4 {[%clk
0:03:01.7]} 5... Bg4 {[%clk 0:02:54]} 6. Nbd2 {[%clk 0:03:01.4]} 6... Nbd7
{[%clk 0:02:49.7]} 7. g3 {[%clk 0:03:01.3]} 7... e6 {[%clk 0:02:49.1]} 8. Bg2
{[%clk 0:03:01]} 8... Be7 {[%clk 0:02:49.4]} 9. O-O {[%clk 0:03:00.3]} 9... O-O
{[%clk 0:02:49.9]} 10. b3 {[%clk 0:02:54.7]} 10... Rc8 {[%clk 0:02:42.1]} 11.
Bb2 {[%clk 0:02:50.3]} 11... Qa5 {[%clk 0:02:34.7]} 12. h3 {[%clk 0:02:09.1]}
12... Bf5 {[%clk 0:02:28]} 13. a3 {[%clk 0:01:36.7]} 13... h6 {[%clk 0:02:14.9]}
14. b4 {[%clk 0:01:30.6]} 14... Qa4 {[%clk 0:02:05.2]} 15. Rfc1 {[%clk
0:01:21.1]} 15... Ne4 {[%clk 0:01:57.3]} 16. Nxe4 {[%clk 0:01:09.3]} 16... Bxe4
{[%clk 0:01:58.2]} 17. Nd2 {[%clk 0:00:55.2]} 17... Bxg2 {[%clk 0:01:50.4]} 18.
Kxg2 {[%clk 0:00:56.1]} 18... Nb6 {[%clk 0:01:50.3]} 19. Qc2 {[%clk 0:00:41.2]}
19... Qxc2 {[%clk 0:01:39.1]} 20. Rxc2 {[%clk 0:00:42.1]} 20... Na4 {[%clk
0:01:39.5]} 21. Rac1 {[%clk 0:00:30.9]} 21... a5 {[%clk 0:01:28.9]} 22. Ba1
{[%clk 0:00:13.5]} 22... axb4 {[%clk 0:01:26.9]} 23. axb4 {[%clk 0:00:14]} 23...
Bxb4 {[%clk 0:01:26.2]} 24. Nb3 {[%clk 0:00:11.7]} 24... Ra8 {[%clk 0:01:06.9]}
25. Rc4 {[%clk 0:00:08.5]} 25... Be7 {[%clk 0:01:04.7]} 26. e3 {[%clk
0:00:07.1]} 26... Nb6 {[%clk 0:00:59.5]} 27. R4c2 {[%clk 0:00:07]} 27... Nd5
{[%clk 0:01:00]} 28. Rb1 {[%clk 0:00:05.9]} 28... Nb4 {[%clk 0:00:50.9]} 29. Rc4
{[%clk 0:00:05]} 29... Ra7 {[%clk 0:00:34.4]} 30. Nc5 {[%clk 0:00:04.9]} 30...
Bxc5 {[%clk 0:00:33.7]} 31. dxc5 {[%clk 0:00:05.4]} 31... Nd5 {[%clk 0:00:34.1]}
32. e4 {[%clk 0:00:04.5]} 32... Nc7 {[%clk 0:00:33.7]} 33. Be5 {[%clk
0:00:04.3]} 33... Nb5 {[%clk 0:00:33]} 34. Rd1 {[%clk 0:00:04.6]} 34... f6
{[%clk 0:00:29.3]} 35. Bf4 {[%clk 0:00:04.4]} 35... e5 {[%clk 0:00:24.2]} 36.
Be3 {[%clk 0:00:04.8]} 36... Raa8 {[%clk 0:00:20.6]} 37. Rd7 {[%clk 0:00:04.7]}
37... Rf7 {[%clk 0:00:20.8]} 38. Rxf7 {[%clk 0:00:03.7]} 38... Kxf7 {[%clk
0:00:20.6]} 39. Rc2 {[%clk 0:00:04.5]} 39... Ke6 {[%clk 0:00:19.9]} 40. f4
{[%clk 0:00:04.7]} 40... exf4 {[%clk 0:00:17.6]} 41. gxf4 {[%clk 0:00:05.6]}
41... Ra4 {[%clk 0:00:16]} 42. Kf3 {[%clk 0:00:05.5]} 42... f5 {[%clk
0:00:13.8]} 43. e5 {[%clk 0:00:05.4]} 43... Nc7 {[%clk 0:00:09.8]} 44. Rb2
{[%clk 0:00:05.2]} 44... Nb5 {[%clk 0:00:08.8]} 45. Rd2 {[%clk 0:00:04.9]} 45...
Ra3 {[%clk 0:00:07.6]} 46. Rd8 {[%clk 0:00:04.6]} 46... g5 {[%clk 0:00:06.2]}
47. fxg5 {[%clk 0:00:04.4]} 47... hxg5 {[%clk 0:00:07.1]} 48. Re8+ {[%clk
0:00:04.6]} 48... Kf7 {[%clk 0:00:07.1]} 49. Rb8 {[%clk 0:00:04.5]} 49... f4
{[%clk 0:00:07.2]} 50. Rxb7+ {[%clk 0:00:05]} 50... Ke6 {[%clk 0:00:07.7]} 51.
Kg4 {[%clk 0:00:04.6]} 51... fxe3 {[%clk 0:00:07.2]} 52. Kf3 {[%clk 0:00:05]}
52... Nd4+ {[%clk 0:00:06.9]} 53. Ke4 {[%clk 0:00:04.2]} 53... e2 {[%clk
0:00:06.2]} 54. Rb1 {[%clk 0:00:04.3]} 54... Nc2 {[%clk 0:00:05.5]} 55. Rb8
{[%clk 0:00:02.1]} 55... e1=Q# {[%clk 0:00:05.5]} 0-1

[Event "*** Titled Tuesday Blitz"]
[Site "Chess.com"]
[Date "2021.04.20"]
[Round "6"]
[White "SmoothAsAHedgehog"]
[Black "KonstantinB_1983"]
[Result "1-0"]
[WhiteElo "2675"]
[BlackElo "2501"]
[TimeControl "180+1"]
[EndTime "11:06:34 PDT"]
[Termination "SmoothAsAHedgehog won on time"]

1. e4 {[%clk 0:03:00.9]} 1... c6 {[%clk 0:02:59.7]} 2. Nc3 {[%clk 0:02:54.3]}
2... d5 {[%clk 0:03:00]} 3. Nf3 {[%clk 0:02:54]} 3... dxe4 {[%clk 0:02:56.1]} 4.
Nxe4 {[%clk 0:02:53.7]} 4... Nf6 {[%clk 0:02:56.7]} 5. Ng3 {[%clk 0:02:50.4]}
5... Bg4 {[%clk 0:02:53.3]} 6. h3 {[%clk 0:02:49.3]} 6... Bxf3 {[%clk
0:02:52.6]} 7. Qxf3 {[%clk 0:02:50.2]} 7... e6 {[%clk 0:02:52.6]} 8. c3 {[%clk
0:02:48.1]} 8... Bd6 {[%clk 0:02:49.8]} 9. d4 {[%clk 0:02:45.1]} 9... h6 {[%clk
0:02:50.1]} 10. Bd3 {[%clk 0:02:44.6]} 10... Nbd7 {[%clk 0:02:49.1]} 11. O-O
{[%clk 0:02:32.8]} 11... Qb6 {[%clk 0:02:48.1]} 12. Re1 {[%clk 0:02:30.1]} 12...
O-O {[%clk 0:02:42]} 13. Ne4 {[%clk 0:02:14.7]} 13... Be7 {[%clk 0:02:34.6]} 14.
Rb1 {[%clk 0:01:55.4]} 14... Qa5 {[%clk 0:02:30.3]} 15. a3 {[%clk 0:01:51.5]}
15... Nxe4 {[%clk 0:02:13.4]} 16. Qxe4 {[%clk 0:01:50.3]} 16... Nf6 {[%clk
0:02:13.6]} 17. Qe2 {[%clk 0:01:49.6]} 17... Rfe8 {[%clk 0:02:04.6]} 18. Be3
{[%clk 0:01:43.4]} 18... Nd5 {[%clk 0:01:58.4]} 19. Bd2 {[%clk 0:01:41.7]} 19...
Nf6 {[%clk 0:01:56.7]} 20. b4 {[%clk 0:01:33]} 20... Qc7 {[%clk 0:01:52]} 21.
Qf3 {[%clk 0:01:30]} 21... Rad8 {[%clk 0:01:45.9]} 22. Bf4 {[%clk 0:01:24]}
22... Qd7 {[%clk 0:01:44.6]} 23. Rbd1 {[%clk 0:01:16.8]} 23... Nd5 {[%clk
0:01:36.1]} 24. Bd2 {[%clk 0:01:15.3]} 24... Nf6 {[%clk 0:01:29.1]} 25. Bc1
{[%clk 0:01:12.6]} 25... Qd5 {[%clk 0:01:28]} 26. Qe2 {[%clk 0:01:12]} 26... Qb3
{[%clk 0:01:18.2]} 27. Bb2 {[%clk 0:00:59.2]} 27... Qd5 {[%clk 0:01:09.1]} 28.
c4 {[%clk 0:00:42.9]} 28... Qd7 {[%clk 0:01:04.3]} 29. Bb1 {[%clk 0:00:42.7]}
29... b5 {[%clk 0:00:58.8]} 30. Qc2 {[%clk 0:00:30.4]} 30... bxc4 {[%clk
0:00:57.5]} 31. d5 {[%clk 0:00:30.9]} 31... cxd5 {[%clk 0:00:52.5]} 32. Bd4
{[%clk 0:00:19.3]} 32... Rc8 {[%clk 0:00:42.9]} 33. g4 {[%clk 0:00:19.2]} 33...
a5 {[%clk 0:00:34]} 34. h4 {[%clk 0:00:19.5]} 34... axb4 {[%clk 0:00:31.2]} 35.
axb4 {[%clk 0:00:20.1]} 35... Ne4 {[%clk 0:00:18.2]} 36. Rxe4 {[%clk 0:00:18.3]}
36... dxe4 {[%clk 0:00:17.2]} 37. Qxe4 {[%clk 0:00:18.7]} 37... f5 {[%clk
0:00:14.8]} 38. Qe2 {[%clk 0:00:14.9]} 38... Rcd8 {[%clk 0:00:12]} 39. Bc2
{[%clk 0:00:13.5]} 39... Bxh4 {[%clk 0:00:11.3]} 40. Bc3 {[%clk 0:00:07.5]}
40... Qf7 {[%clk 0:00:10.1]} 41. Re1 {[%clk 0:00:05]} 41... e5 {[%clk
0:00:09.1]} 42. Bxf5 {[%clk 0:00:04.3]} 42... Bf6 {[%clk 0:00:08]} 43. Be4
{[%clk 0:00:04.3]} 43... Qe6 {[%clk 0:00:07.6]} 44. Qf3 {[%clk 0:00:04.3]} 44...
Qf7 {[%clk 0:00:06.4]} 45. Qf5 {[%clk 0:00:03.5]} 45... g6 {[%clk 0:00:05.5]}
46. Qf3 {[%clk 0:00:02.9]} 46... Kg7 {[%clk 0:00:04.8]} 47. Kg2 {[%clk
0:00:03.4]} 47... Bg5 {[%clk 0:00:04.5]} 48. Qe2 {[%clk 0:00:03.1]} 48... Qe6
{[%clk 0:00:04.6]} 49. Ra1 {[%clk 0:00:02.6]} 49... Re7 {[%clk 0:00:03.2]} 50.
b5 {[%clk 0:00:03.1]} 50... Rf8 {[%clk 0:00:03.2]} 51. Ra6 {[%clk 0:00:03.4]}
51... Qf7 {[%clk 0:00:02.4]} 52. Rxg6+ {[%clk 0:00:03.9]} 52... Kh8 {[%clk
0:00:02.2]} 53. Rxg5 {[%clk 0:00:03.5]} 53... hxg5 {[%clk 0:00:01.5]} 54. Qe3
{[%clk 0:00:02.6]} 1-0